bitfinex/quotes_ETHUSD_20260209
["timestamp","ask_amount","ask_price","bid_price","bid_amount"]
[1770672731306,3.309,2110.4,2109.0,0.05631688]
[1770672731307,1.18466568,2110.3,2109.0,1.2416889]
[1770672731499,1.18466568,2110.3,2109.2,0.05631688]
[1770672731701,1.18466568,2110.3,2109.8,0.001]
[1770672732027,3.309,2110.2,2109.8,0.001]
[1770672732226,3.309,2110.2,2109.5,0.001]
[1770672732427,0.98147985,2110.1,2109.5,0.001]
[1770672732615,3.309,2110.2,2109.5,0.001]
[1770672732821,0.98146204,2110.1,2109.5,0.001]
[1770672733117,3.309,2110.2,2108.9,0.05631688]
[1770672733320,1.18483412,2110.0,2108.9,0.05631688]
[1770672733716,11.83087347,2110.0,2108.7,0.05731688]
[1770672733905,0.98053678,2109.9,2109.3,0.05631688]
[1770672734106,10.74843935,2109.7,2107.6,0.2472515]
[1770672734407,0.13462167,2108.1,2108.0,1.18595825]
[1770672734599,3.31,2109.6,2108.4,0.05631688]
[1770672734806,0.97884794,2109.5,2108.4,0.05631688]
[1770672735007,0.97884794,2109.4,2108.4,0.05631688]
[1770672735230,0.97884794,2109.4,2108.0,0.05631688]
[1770672735911,1.18522732,2109.3,2107.9,0.05631688]
[1770672736228,0.97884794,2109.2,2107.9,1.18600332]
[1770672736437,0.97704131,2109.1,2107.7,1.18608851]
[1770672736636,1.18522732,2109.3,2107.8,0.05631688]
[1770672736847,0.97701009,2109.2,2107.7,1.24243598]
[1770672737012,0.97701009,2109.1,2107.7,0.05631688]
[1770672737327,1.18522732,2109.3,2107.8,0.05631688]
[1770672737526,0.9767353,2109.2,2107.8,0.05631688]
[1770672737731,9.77531418,2109.5,2107.7,1.18609565]
[1770672737732,2.50213201,2109.6,2107.9,0.05631688]
[1770672737934,10.81179063,2111.3,2107.9,0.05631688]
[1770672737935,1.42066593,2111.8,2109.9,0.05631688]
[1770672738111,0.05631688,2110.7,2109.3,3.311]
[1770672738430,0.05631688,2110.6,2108.8,0.1024]
[1770672738819,0.05631688,2110.4,2108.8,0.1024]
[1770672739215,6.42827,2110.5,2108.8,0.1024]
[1770672739936,7.61287435,2110.5,2108.9,1.18545213]
[1770672740104,7.61287435,2110.5,2108.9,1.24176901]
[1770672740509,6.42827,2110.5,2109.3,10.70235623]
[1770672740820,6.42827,2110.5,2109.3,10.64603935]
[1770672741933,6.42827,2110.5,2109.4,1.18517113]
[1770672743712,0.05631688,2110.8,2108.3,2.34665719]
[1770672743913,10.64603935,2109.1,2107.1,0.05631688]
[1770672744113,1.18538147,2109.1,2107.6,0.05631688]
[1770672744336,1.18538147,2109.1,2107.4,0.05631688]
[1770672744337,0.05631688,2109.2,2107.4,0.05631688]
[1770672744517,4.74103399,2109.3,2107.4,0.15871688]
[1770672744717,21.771164,2109.1,2107.4,0.15871688]
[1770672745228,21.771164,2108.9,2107.4,0.15871688]
[1770672745442,21.771164,2108.9,2108.3,0.05631688]
[1770672745641,21.771164,2108.9,2107.9,0.05631688]
[1770672745937,21.771164,2108.9,2108.1,0.05631688]
[1770672746139,1.18550834,2108.8,2108.1,0.05631688]
[1770672746510,1.18550834,2108.8,2107.9,1.24233043]
[1770672746712,1.18550834,2108.8,2107.8,0.05631688]
[1770672746927,21.771164,2108.7,2107.8,0.05631688]
[1770672747842,21.771164,2108.7,2107.9,0.05631688]
[1770672748622,1.18562079,2108.6,2107.9,0.05631688]
[1770672749224,1.18562079,2108.6,2107.7,0.05631688]
[1770672749426,1.18562079,2108.6,2107.6,1.18615475]
[1770672749664,1.18562079,2108.6,2107.7,0.05631688]
[1770672750033,1.18562079,2108.6,2107.9,0.05631688]
[1770672750231,1.18562079,2108.6,2107.7,0.05631688]
[1770672750430,1.18562079,2108.6,2107.7,1.24243828]
[1770672750650,1.18562079,2108.6,2107.7,1.1861214]
[1770672750954,4.74203338,2109.2,2107.6,1.24246233]
[1770672751156,21.771164,2108.7,2107.6,1.24246233]
[1770672752043,21.771164,2108.9,2108.0,0.05631688]
[1770672753248,1.18550834,2108.8,2108.0,0.05631688]
[1770672753419,1.18550834,2108.8,2108.0,1.24226042]
[1770672753628,0.92519792,2107.8,2105.1,2.33883]
[1770672753823,0.012,2106.1,2105.3,0.03722274]
[1770672754044,0.012,2106.1,2105.4,0.24731952]
[1770672755359,1.1990686,2106.1,2104.3,10.64603935]
[1770672755523,1.1990686,2106.1,2104.8,0.05631688]
[1770672755524,18.97078,2106.0,2104.8,0.05631688]
[1770672755721,18.97078,2105.9,2104.8,1.18774714]
[1770672755974,18.97078,2105.9,2104.9,0.24731952]
[1770672756131,18.97078,2105.9,2104.7,0.24731952]
[1770672756333,18.97078,2106.0,2104.8,1.18772713]
[1770672756555,18.97078,2106.0,2104.9,1.43499195]
[1770672756728,18.97078,2106.0,2104.9,0.24731952]
[1770672756928,1.1990686,2106.1,2104.9,0.24731952]
[1770672757236,1.1990686,2106.1,2105.1,4.75034693]
[1770672757440,0.012,2106.1,2105.2,0.24731952]
[1770672757656,4.80240461,2107.0,2105.2,0.24731952]
[1770672757657,4.99298466,2107.2,2105.3,0.05631688]
[1770672757878,1.1864648,2107.1,2105.7,0.05631688]
[1770672758086,1.1864648,2107.1,2105.8,0.24731952]
[1770672758235,1.433774,2107.2,2106.2,0.05631688]
[1770672758751,1.433774,2107.2,2106.3,0.24731952]
[1770672758950,1.433774,2107.2,2106.1,0.24731952]
[1770672759277,1.433774,2107.2,2106.1,1.18702815]
[1770672759437,1.433774,2107.2,2106.0,5.64815564]
[1770672759438,1.433774,2107.2,2106.2,0.24731952]
[1770672759638,1.433774,2107.2,2106.1,0.24731952]
[1770672760033,1.18643955,2107.2,2106.1,0.24731952]
[1770672760447,4.29521043,2107.1,2106.1,0.24731952]
[1770672760758,3.315,2107.1,2106.1,0.24731952]
[1770672761349,1.18652112,2107.0,2106.1,0.24731952]
[1770672762483,1.18652112,2107.0,2105.3,0.05631688]
[1770672762484,0.05631688,2105.7,2103.4,4.75419636]
[1770672762687,0.05631688,2105.2,2103.4,4.75419636]
[1770672762963,0.05631688,2105.5,2103.4,1.18855186]
[1770672763152,0.05631688,2105.1,2103.2,0.02631948]
[1770672763363,0.05631688,2105.1,2103.2,1.21497419]
[1770672763364,0.05631688,2105.0,2103.2,1.21497419]
[1770672763543,0.05631688,2105.0,2103.2,0.02631948]
[1770672763879,0.05631688,2104.8,2103.2,1.21496853]
[1770672764050,0.05631688,2104.6,2103.2,0.02631948]
[1770672764362,1.18759203,2105.1,2103.2,1.21497582]
[1770672764532,1.18759203,2105.1,2103.2,1.2712927]
[1770672764730,1.24390891,2105.1,2103.2,1.21497582]
[1770672764970,1.24390891,2105.1,2103.3,0.05631688]
[1770672765335,4.8073621,2104.9,2103.2,0.02631948]
[1770672765740,0.05631688,2104.7,2103.2,0.02631948]
[1770672765960,0.05631688,2104.6,2103.2,0.02631948]
[1770672766477,4.8073621,2104.9,2103.2,0.02631948]
[1770672766657,4.8073621,2104.9,2102.5,4.91493048]
[1770672766658,0.02476,2102.9,2100.8,1.42801539]
[1770672766857,0.02476,2102.9,2102.0,0.05631688]
[1770672767158,0.663,2104.9,2102.6,0.05631688]
[1770672767376,1.18793062,2104.5,2102.9,0.05631688]
[1770672767676,8.06741863,2105.1,2103.2,0.05631688]
[1770672767853,8.06741863,2105.1,2103.5,0.05631688]
[1770672768180,8.06741863,2105.1,2103.3,0.05631688]
[1770672768181,8.12373551,2105.1,2103.3,0.05631688]
[1770672768358,8.12373551,2105.1,2101.7,1.42735705]
[1770672768359,0.05631688,2104.9,2101.7,1.42735705]
[1770672768563,0.1024,2104.6,2102.8,0.05631688]
[1770672769064,0.05631688,2104.3,2102.4,0.05631688]
[1770672769265,3.318,2104.2,2102.4,0.05631688]
[1770672769452,1.18815645,2104.1,2102.8,0.001]
[1770672769948,1.18815645,2104.1,2103.7,0.003]
[1770672770149,1.18815645,2104.1,2102.8,0.001]
[1770672770373,0.02273345,2102.2,2100.0,2.45135305]
[1770672770574,0.02273345,2102.2,2101.7,0.001]
[1770672771148,0.02273345,2102.2,2100.1,4.7616543]
[1770672771389,0.02273345,2102.2,2099.3,1.48532648]
[1770672771390,1.18934348,2102.0,2100.0,1.24674678]
[1770672771557,1.18934348,2102.0,2100.6,0.05631688]
[1770672771757,0.02273345,2102.2,2101.0,0.05631688]
[1770672771969,1.21197358,2102.2,2100.7,0.05631688]
[1770672772166,1.21197358,2102.2,2100.9,0.05631688]
[1770672772482,1.21197903,2102.2,2100.9,0.05631688]
[1770672772974,1.21197903,2102.2,2100.8,0.05631688]
[1770672773177,0.05631688,2102.1,2099.8,4.76190476]
[1770672773359,0.02273345,2102.2,2100.6,1.19013615]
[1770672773560,0.02273345,2102.2,2100.7,0.05631688]
[1770672773767,1.21196605,2102.2,2100.6,1.19013615]
[1770672773970,0.02273345,2102.2,2100.6,1.19013615]
[1770672774176,10.43455544,2101.5,2099.6,0.10849609]
[1770672774352,1.0033966,2100.5,2099.6,0.10849609]
[1770672774559,0.05631688,2102.0,2099.7,4.81886219]
[1770672774877,0.05631688,2101.7,2100.3,1.19027848]
[1770672775078,0.05631688,2101.9,2100.2,1.190331]
[1770672775460,1.18945665,2101.8,2100.1,1.19037749]
[1770672775662,10.48075312,2101.5,2099.7,4.76240983]
[1770672775869,0.1024,2101.7,2099.8,1.19058956]
[1770672776177,0.05631688,2101.6,2099.6,0.16481297]
[1770672776378,0.05631688,2101.6,2099.8,0.05631688]
[1770672776754,1.18945665,2101.8,2100.2,0.05631688]
[1770672777178,1.18945665,2101.8,2099.6,4.92744528]
[1770672777179,0.05631688,2101.6,2099.7,4.76252024]
[1770672777478,4.75782662,2101.9,2100.3,0.05631688]
[1770672777858,4.75782662,2101.9,2099.9,1.24684076]
[1770672778055,4.75782662,2101.9,2100.1,0.05631688]
[1770672778483,4.75782662,2101.9,2100.3,0.05631688]
[1770672778683,4.75782662,2101.9,2100.4,0.05631688]
[1770672778870,4.7569418,2102.2,2100.6,0.05631688]
[1770672779074,4.81325868,2102.2,2100.6,0.05631688]
[1770672779277,4.81325868,2102.2,2100.4,0.05631688]
[1770672779475,4.81325868,2102.2,2100.5,1.19019281]
[1770672779788,4.7569418,2102.2,2100.4,1.19022855]
[1770672779974,4.81325868,2102.2,2100.4,1.19022855]
[1770672780485,4.7569418,2102.2,2100.4,1.19022855]
[1770672780712,0.05631688,2101.8,2099.6,0.16481297]
[1770672780860,0.05631688,2101.3,2099.6,0.10849609]
[1770672781068,0.05631688,2100.8,2098.8,1e-08]
[1770672781288,0.05631688,2100.2,2098.8,1.19114273]
[1770672781476,0.05631688,2099.9,2098.8,1e-08]
[1770672781682,1.19030614,2100.3,2098.8,1e-08]
[1770672781870,1.19007949,2100.7,2098.9,0.05631688]
[1770672782062,0.05631688,2100.5,2098.9,0.05631688]
[1770672782259,0.05631688,2100.5,2098.8,1e-08]
[1770672782486,0.05631688,2100.3,2098.8,1e-08]
[1770672782764,0.05631688,2100.6,2100.5,0.001]
[1770672783067,0.05631688,2100.6,2098.8,1e-08]
[1770672783389,0.05631688,2100.4,2100.3,0.001]
[1770672783593,1.19019281,2100.5,2098.8,1e-08]
[1770672783789,1.19019281,2100.5,2099.4,0.001]
[1770672784870,1.1899662,2100.9,2099.4,0.001]
[1770672785789,1.18985293,2101.1,2099.4,1.19181642]
[1770672785994,0.05631688,2100.8,2099.4,0.001]
[1770672786202,0.05631688,2101.0,2099.4,0.001]
[1770672787168,1.18985293,2101.1,2099.4,0.001]
[1770672787371,1.18985293,2101.1,2098.3,0.05631688]
[1770672787372,0.05631688,2099.5,2098.3,1.19139811]
[1770672787585,3.38131688,2099.8,2098.0,4.76635848]
[1770672787781,0.05631688,2099.3,2097.5,4.76746551]
[1770672787990,0.05631688,2099.6,2097.7,0.05631688]
[1770672788527,0.05631688,2099.4,2097.7,0.05631688]
[1770672788683,0.05631688,2099.4,2097.5,4.76746551]
[1770672789010,1.19064628,2099.7,2097.9,0.05631688]
[1770672789181,0.05631688,2099.4,2097.5,4.32378239]
[1770672789372,1.19064628,2099.7,2097.8,0.05631688]
[1770672789711,1.1907597,2099.5,2097.9,1.19162964]
[1770672789895,0.00718012,2099.4,2098.0,1.19159865]
[1770672790093,0.00718012,2099.4,2098.0,1.19160385]
[1770672790294,0.00718012,2099.4,2097.9,1.19163911]
[1770672790471,0.063497,2099.4,2097.6,8.09218539]
[1770672790674,0.05631688,2099.2,2097.6,3.325]
[1770672790906,0.00718012,2099.1,2097.9,1.19162738]
[1770672791110,0.00718012,2099.1,2098.0,1.19159801]
[1770672791400,0.00718012,2099.1,2098.0,1.19160626]
[1770672791596,0.00718012,2099.1,2097.9,1.19162612]
[1770672791801,0.00718012,2099.1,2097.1,0.05631688]
[1770672791802,1.19104335,2099.0,2097.2,4.76813445]
[1770672792004,0.2483,2097.3,2095.1,0.05631688]
[1770672792214,0.00718012,2097.2,2095.7,0.05631688]
[1770672792376,0.00718012,2097.2,2096.7,1.19229942]
[1770672792575,0.00718012,2097.2,2095.9,4.77116484]
[1770672792576,0.00718012,2097.2,2096.5,1.19242345]
[1770672792806,0.00718012,2097.2,2097.1,1.19212245]
[1770672793025,0.00718012,2097.2,2096.6,4.76959612]
[1770672793312,0.00718012,2097.2,2096.2,0.05631688]
[1770672793313,0.05631688,2098.5,2096.9,1.19223578]
[1770672793473,0.05631688,2098.5,2097.0,1.19216227]
[1770672793674,1.19127037,2098.6,2096.7,4.82568074]
[1770672793876,1.19127037,2098.6,2097.0,0.05631688]
[1770672794094,1.19127037,2098.6,2097.2,0.05631688]
[1770672794487,1.1911001,2098.9,2097.2,0.05631688]
[1770672794695,0.05631688,2099.2,2097.4,0.05631688]
[1770672794696,1.19098661,2099.1,2097.4,0.05631688]
[1770672795709,1.19115685,2098.8,2097.1,4.82457932]
[1770672796005,1.19115685,2098.8,2097.3,0.05631688]
[1770672796204,1.19115685,2098.8,2097.2,1.19306561]
[1770672796697,1.19115685,2098.8,2098.6,0.003]
[1770672796882,1.19104335,2099.0,2097.2,1.19306561]
[1770672797081,4.76354879,2099.3,2097.5,0.05631688]
[1770672797082,1.19087314,2099.3,2097.5,0.05631688]
[1770672797284,1.19053288,2099.9,2098.0,0.05631688]
[1770672797480,1.19053288,2099.9,2097.4,0.42283475]
[1770672797481,0.05631688,2099.0,2097.4,0.42283475]
[1770672797711,0.05631688,2097.7,2097.2,0.001]
[1770672798026,0.05631688,2097.9,2097.2,0.001]
[1770672798230,1.19159761,2098.1,2097.2,0.001]
[1770672798389,1.19138391,2098.4,2097.2,0.001]
[1770672799182,1.1911001,2098.9,2097.2,0.001]
[1770672799811,4.7644004,2099.1,2097.4,1.19195194]
[1770672802038,0.05631688,2098.5,2097.4,0.14]
[1770672802186,0.05631688,2098.8,2097.4,0.14]
[1770672802390,0.05631688,2098.6,2097.4,0.14]
[1770672802626,0.05631688,2099.0,2097.4,0.14]
[1770672803210,0.97745997,2098.9,2097.4,0.14]
[1770672803394,0.05631688,2098.8,2097.4,0.14]
[1770672803795,0.05631688,2098.7,2097.4,0.14]
[1770672803994,0.05631688,2098.5,2097.4,0.14]
[1770672804767,1.25977366,2098.3,2094.1,0.95452845]
[1770672805045,1.25977366,2098.3,2093.2,0.05631688]
[1770672805046,0.05631688,2095.6,2093.2,0.05631688]
[1770672805339,0.05631688,2095.2,2093.0,15.25841555]
[1770672805494,0.05631688,2095.4,2094.0,1.19388516]
[1770672805495,0.05631688,2094.9,2094.0,1.19388516]
[1770672805895,0.05631688,2094.9,2093.1,4.77756108]
[1770672805896,0.05631688,2094.7,2093.1,4.77756108]
[1770672806332,0.05631688,2094.5,2093.1,4.77756108]
[1770672806633,0.05631688,2094.5,2093.0,0.1024]
[1770672806929,0.05631688,2095.7,2093.2,0.05631688]
[1770672807094,0.05631688,2095.7,2093.4,0.05631688]
[1770672807095,0.05631688,2095.5,2093.4,0.05631688]
[1770672807728,0.05631688,2095.7,2093.6,0.05631688]
[1770672807928,1.19308962,2095.4,2093.7,1.19405836]
[1770672808620,0.05631688,2095.3,2093.7,1.19405836]
[1770672808816,1.19308962,2095.4,2093.7,1.19405836]
[1770672809016,1.19308962,2095.4,2094.7,0.001]
[1770672809336,0.05631688,2095.2,2093.7,1.19405836]
[1770672809491,0.05631688,2095.1,2093.7,1.19405836]
[1770672809697,3.331,2095.2,2094.5,0.001]
[1770672809698,0.05631688,2095.0,2094.5,0.001]
[1770672810004,3.38731688,2095.5,2094.5,0.001]
[1770672810195,0.05631688,2095.4,2094.5,0.001]
[1770672810396,0.05631688,2095.7,2094.5,0.001]
[1770672811305,4.77190303,2095.8,2094.5,0.001]
[1770672811626,0.05631688,2095.6,2094.5,0.001]
[1770672812327,0.05631688,2095.2,2094.5,0.001]
[1770672813136,1.19314656,2095.3,2094.5,0.001]
[1770672813309,1.24946344,2095.3,2094.5,0.001]
[1770672813505,1.19314656,2095.3,2094.5,0.001]
[1770672813730,1.19303268,2095.5,2094.5,0.001]
[1770672813934,1.19240675,2096.6,2094.5,0.001]
[1770672814132,1.19252051,2096.4,2094.7,1.19348832]
[1770672814333,0.05631688,2096.7,2094.7,1.19348832]
[1770672814634,1.19238318,2096.7,2094.8,0.05631688]
[1770672814834,1.24863105,2096.8,2094.8,0.05631688]
[1770672815039,0.05631688,2096.6,2094.8,0.05631688]
[1770672815407,1.24838249,2097.2,2095.2,0.05631688]
[1770672815609,0.05631688,2097.0,2095.0,0.05631688]
[1770672815838,0.05631688,2097.1,2095.2,0.05631688]
[1770672816024,0.05631688,2097.3,2095.4,0.05631688]
[1770672816231,0.05631688,2097.3,2095.5,1.19303268]
[1770672816427,1.24822035,2097.5,2095.5,1.19303268]
[1770672816628,1.24799695,2097.9,2095.8,0.05631688]
[1770672816828,0.05631688,2097.7,2095.9,0.05631688]
[1770672817030,0.05631688,2097.7,2095.6,3.49171688]
[1770672817031,0.05631688,2098.0,2096.0,0.05631688]
[1770672817533,0.05631688,2098.0,2096.2,0.05631688]
[1770672817728,0.05631688,2098.1,2096.2,0.15871688]
[1770672818130,0.05631688,2098.1,2096.3,1.19257739]
[1770672818330,1.19150205,2098.2,2096.4,0.05631688]
[1770672818537,1.24779174,2098.3,2096.4,0.05631688]
[1770672818738,0.05631688,2098.3,2096.4,0.05631688]
[1770672818936,1.1914229,2098.4,2096.4,0.05631688]
[1770672818937,1.24773978,2098.4,2096.4,0.05631688]
[1770672819233,1.24769405,2098.5,2096.6,10.53707]
[1770672819429,0.002,2098.9,2097.0,0.05631688]
[1770672819644,0.05631688,2098.8,2097.0,0.05631688]
[1770672819812,0.05631688,2098.8,2096.8,0.15871688]
[1770672820242,1.24747688,2098.8,2097.1,1.19212245]
[1770672820952,0.05631688,2098.8,2097.1,1.19212245]
[1770672822045,0.05631688,2098.4,2097.1,1.19212245]
[1770672822214,0.05631688,2098.4,2096.4,5.76789558]
[1770672822215,0.05631688,2098.0,2096.4,5.76789558]
[1770672822414,1.05631688,2098.2,2096.4,10.53789427]
[1770672822614,2.24782421,2098.2,2096.4,10.53789427]
[1770672822917,0.05631688,2098.3,2096.4,21.07496427]
[1770672823245,1.24775864,2098.3,2096.4,21.07496427]
[1770672823415,1.24775864,2098.3,2096.4,10.59421115]
[1770672823937,0.05631688,2098.3,2096.4,10.59421115]
[1770672824121,0.05631688,2098.4,2096.6,0.05631688]
[1770672824320,0.05631688,2098.7,2096.8,0.05631688]
[1770672825042,0.05631688,2098.8,2096.8,0.05631688]
[1770672825339,0.002,2098.9,2097.0,0.05631688]
[1770672826230,0.002,2098.9,2097.1,1.19212245]
[1770672826431,0.002,2098.9,2097.2,0.05631688]
[1770672826637,0.05631688,2098.0,2097.0,1.19215401]
[1770672826839,0.05631688,2098.6,2097.0,1.19215401]
[1770672827143,10.53707,2098.8,2097.0,1.19215401]
[1770672827144,0.05631688,2098.8,2097.0,1.19215401]
[1770672827526,1.0,2098.4,2096.7,0.05631688]
[1770672827738,1.0,2098.4,2096.9,1.1922084]
[1770672828050,1.0,2098.4,2097.0,1.19217901]
[1770672828222,0.05631688,2098.1,2097.0,1.19217901]
[1770672828420,0.05631688,2098.1,2096.4,4.76987621]
[1770672828421,1.19161105,2098.0,2096.4,4.76987621]
[1770672829260,0.05631688,2097.7,2096.4,4.76987621]
[1770672830570,1.19183829,2097.6,2096.1,4.7701488]
[1770672830864,12.15275494,2098.5,2096.1,4.7701488]
[1770672831085,0.05631688,2098.1,2096.2,0.05631688]
[1770672831269,4.82232207,2098.2,2096.2,0.05631688]
[1770672831451,0.05631688,2097.5,2093.9,0.18432]
[1770672831668,0.05631688,2095.1,2093.4,1.19419192]
[1770672831829,0.05631688,2095.1,2092.6,11.97063802]
[1770672831830,0.05631688,2094.6,2093.3,1.19424237]
[1770672832155,0.05631688,2094.7,2093.3,1.19426573]
[1770672832374,0.05631688,2094.5,2093.3,1.19426573]
[1770672832871,1.19353553,2094.7,2093.2,0.05631688]
[1770672833487,1.19053553,2094.7,2093.2,0.05631688]
[1770672834168,1.19053553,2094.7,2093.0,0.05631688]
[1770672834467,1.0,2094.5,2093.1,0.05631688]
[1770672834679,2.19362567,2094.5,2093.3,0.05631688]
[1770672834885,2.19362567,2094.5,2093.2,1.25066046]
[1770672836549,1.0,2094.5,2093.4,0.05631688]
[1770672836769,2.1936398,2094.5,2092.9,0.001]
[1770672836973,0.05631688,2093.3,2091.5,4.83745896]
[1770672837152,0.05631688,2093.3,2091.6,1.19525721]
[1770672837153,0.05631688,2092.8,2091.6,1.19525721]
[1770672837479,0.05631688,2093.0,2091.6,1.19525721]
[1770672837672,0.05631688,2092.9,2091.6,1.19525721]
[1770672837983,0.1024,2094.1,2091.6,1.19525721]
[1770672838151,0.05631688,2093.8,2091.9,0.05631688]
[1770672838885,1.19383028,2094.1,2092.1,0.05631688]
[1770672839260,1.19383028,2094.1,2092.3,0.05631688]
[1770672839653,1.19383028,2094.1,2092.4,3.334]
[1770672839864,1.0,2093.9,2092.4,3.334]
[1770672840260,1.0,2093.9,2092.5,0.05631688]
[1770672840459,1.0,2093.9,2092.7,0.05631688]
[1770672840661,1.0,2093.9,2093.1,0.05631688]
[1770672840865,1.2494065,2095.4,2093.5,0.05631688]
[1770672841196,0.05631688,2095.2,2093.6,3.335]
[1770672841401,0.05631688,2095.1,2093.6,3.335]
[1770672841893,1.2494065,2095.4,2093.6,3.2602702]
[1770672842781,1.2494065,2095.4,2093.7,0.05631688]
[1770672842782,1.19308962,2095.4,2093.7,0.05631688]
[1770672842988,0.05631688,2095.4,2093.8,1.19400133]
[1770672843492,0.05631688,2095.2,2093.8,1.19400133]
[1770672843701,0.05631688,2095.2,2090.8,4.78285638]
[1770672843702,1.09415713,2093.7,2090.8,4.78285638]
[1770672843989,0.99786585,2091.6,2090.3,0.1406918]
[1770672844173,0.99786585,2091.6,2090.4,1.20405799]
[1770672844485,0.29210427,2091.7,2090.4,4.79172101]
[1770672844656,10.55198998,2093.1,2091.0,1.1955715]
[1770672844852,1.19462894,2092.7,2090.9,4.78240076]
[1770672845092,1.19462894,2092.7,2091.0,0.00813031]
[1770672845093,1.25094582,2092.7,2091.0,0.00813031]
[1770672845480,1.19462894,2092.7,2091.0,0.00813031]
[1770672845805,0.05631688,2092.7,2091.0,0.06444719]
[1770672846099,0.05631688,2092.9,2091.1,10.55198998]
[1770672846259,0.05631688,2092.7,2091.0,0.00813031]
[1770672846449,0.05631688,2092.9,2091.0,0.00813031]
[1770672846673,1.19417243,2093.5,2091.2,10.55198998]
[1770672846874,0.01435597,2093.8,2092.0,0.05631688]
[1770672847090,0.05631688,2093.7,2091.8,1.25145981]
[1770672847293,0.01435597,2093.8,2092.1,3.39231688]
[1770672847726,0.01435597,2093.8,2091.6,4.78057175]
[1770672847727,0.05631688,2092.2,2090.3,1e-08]
[1770672847883,0.05631688,2092.8,2090.3,1e-08]
[1770672848208,0.05631688,2092.2,2091.3,0.001]
[1770672848371,0.05631688,2092.1,2091.3,0.001]
[1770672848577,0.05631688,2092.3,2091.3,0.001]
[1770672848877,0.05631688,2092.1,2091.3,0.001]
[1770672849709,0.05631688,2092.3,2091.3,0.001]
[1770672849877,0.05631688,2092.2,2091.3,0.001]
[1770672850071,0.05631688,2092.4,2091.3,0.001]
[1770672850324,0.05631688,2092.2,2091.3,0.001]
[1770672851683,1.19472474,2092.6,2091.3,0.001]
[1770672851890,1.19457186,2092.8,2091.3,0.001]
[1770672852090,0.05631688,2092.5,2091.3,0.001]
[1770672852294,0.05631688,2092.3,2091.3,0.001]
[1770672852675,0.05631688,2092.5,2091.3,0.001]
[1770672852912,0.05631688,2092.4,2091.3,0.001]
[1770672853201,0.05631688,2092.7,2091.3,0.001]
[1770672853381,0.05631688,2092.4,2091.3,0.001]
[1770672853778,1.19468603,2092.6,2091.3,0.001]
[1770672854103,0.05631688,2092.5,2091.3,0.001]
[1770672854277,4.77755905,2093.2,2091.3,0.001]
[1770672854479,0.05631688,2092.7,2091.3,0.001]
[1770672854676,0.05631688,2093.0,2091.3,0.001]
[1770672854977,4.77755905,2093.2,2091.3,0.001]
[1770672855178,0.05631688,2093.1,2091.3,0.001]
[1770672855380,0.05631688,2093.4,2091.3,0.001]
[1770672855612,0.05631688,2093.2,2091.3,0.001]
[1770672855782,4.77668975,2093.7,2091.3,0.001]
[1770672855783,0.05631688,2093.8,2091.6,0.05631688]
[1770672856108,0.05631688,2093.4,2091.7,3.338]
[1770672856411,0.05631688,2093.8,2091.7,3.338]
[1770672856711,0.05631688,2093.1,2091.7,3.338]
[1770672856917,0.05631688,2093.3,2091.7,3.338]
[1770672857229,0.05631688,2093.4,2091.7,3.338]
[1770672857710,1.19417243,2093.5,2091.8,1.19514293]
[1770672857906,0.05631688,2093.4,2091.8,1.19514293]
[1770672858107,1.19417243,2093.5,2091.8,1.19514293]
[1770672858284,0.05631688,2093.7,2091.8,1.19514293]
[1770672858485,1.25026119,2093.9,2091.9,10.60830686]
[1770672858898,1.19394431,2093.9,2091.9,10.60830686]
[1770672859212,1.25026119,2093.9,2091.9,10.60830686]
[1770672859508,0.05631688,2093.7,2091.9,10.60830686]
[1770672859705,4.77577725,2094.0,2092.1,0.05631688]
[1770672859909,0.05631688,2093.9,2092.1,0.05631688]
[1770672860995,4.77577725,2094.0,2092.1,0.05631688]
[1770672861196,0.002,2093.2,2092.1,0.05631688]
[1770672861783,0.002,2093.2,2092.2,1.19491444]
[1770672865113,1.22499998,2094.4,2092.7,0.05631688]
[1770672865313,2.47491855,2094.6,2092.8,3.338]
[1770672865518,0.98049725,2094.5,2092.8,3.338]
[1770672865814,0.98049725,2094.4,2093.0,1.19445771]
[1770672866133,1.24986218,2094.6,2093.0,1.19445771]
[1770672866315,0.98089294,2094.5,2093.0,1.19445771]
[1770672866529,0.05631688,2094.9,2093.4,10.55198998]
[1770672866689,0.98095026,2094.8,2093.4,10.55198998]
[1770672866893,0.05631688,2095.0,2093.4,10.55198998]
[1770672867093,0.9809759,2094.9,2093.4,10.55198998]
[1770672867412,0.05631688,2095.0,2093.4,10.55198998]
[1770672867615,0.98046923,2094.9,2093.4,10.55198998]
[1770672867820,1.22499998,2095.6,2094.0,1.19388729]
[1770672868117,0.05631688,2095.5,2094.1,3.338]
[1770672868317,1.24924495,2095.7,2094.1,3.338]
[1770672868318,0.05631688,2095.7,2094.1,3.338]
[1770672868506,1.22499998,2096.0,2094.1,3.338]
[1770672868711,0.05631688,2095.4,2094.1,3.338]
[1770672868906,0.05631688,2095.6,2094.1,3.338]
[1770672869112,0.05631688,2095.8,2094.1,3.338]
[1770672869408,0.05631688,2095.7,2094.1,3.338]
[1770672869724,0.05631688,2095.6,2094.1,3.338]
[1770672869892,1.19303268,2095.5,2094.2,1.19377327]
[1770672870095,0.05631688,2095.0,2093.7,4.77614887]
[1770672870298,0.05631688,2094.2,2092.4,15.33084536]
[1770672870521,0.05631688,2094.4,2093.5,1.19414011]
[1770672870718,0.05631688,2094.4,2093.4,4.77688725]
[1770672871020,0.05631688,2094.8,2093.6,3.337]
[1770672871316,0.05631688,2094.3,2093.6,3.337]
[1770672871492,0.05631688,2094.5,2093.6,3.337]
[1770672871692,0.05631688,2094.3,2093.6,3.28252198]
[1770672871996,0.05631688,2094.8,2093.6,3.28252198]
[1770672871997,1.24989951,2094.6,2093.7,1.19405836]
[1770672872745,0.05631688,2094.8,2093.7,1.19405836]
[1770672873626,1.24966531,2095.0,2093.7,1.19405836]
[1770672874026,1.24976554,2094.8,2093.7,1.19405836]
[1770672875547,0.002,2094.4,2093.7,1.19405836]
[1770672875853,0.05631688,2093.8,2093.2,1.19430961]
[1770672876193,0.05631688,2094.0,2093.1,1.19438571]
[1770672876317,0.05631688,2094.2,2093.1,1.19438571]
[1770672876520,1.2500682,2094.3,2093.1,1.19438571]
[1770672876752,1.25200645,2094.4,2093.1,1.19438571]
[1770672876949,0.9794928,2094.3,2093.1,1.19438571]
[1770672877246,1.25200645,2094.4,2093.1,1.19438571]
[1770672877625,1.19568957,2094.4,2093.1,1.19438571]
[1770672878051,1.25200645,2094.4,2092.7,4.77760259]
[1770672878350,0.97945874,2094.3,2092.7,4.77760259]
[1770672878519,1.03577562,2094.2,2092.7,4.77760259]
[1770672878719,0.05631688,2094.0,2092.7,4.77760259]